bitfinex/quotes_SOLUSD_20240821
["timestamp","ask_amount","ask_price","bid_price","bid_amount"]
[1724274139722,74.6736,143.23,143.14,20.25098]
[1724274142456,67.6918,143.23,143.14,20.25098]
[1724274144019,67.6918,143.23,143.15,20.0]
[1724274144256,22.6918,143.23,143.16,20.25098]
[1724274146527,22.6918,143.23,143.17,20.0]
[1724274146728,16.3777,143.23,143.18,21.52206329]
[1724274147070,22.2761,143.26,143.18,20.12549]
[1724274147229,22.2761,143.26,143.19,0.12549]
[1724274150228,22.2761,143.26,143.18,20.12549]
[1724274154466,22.2761,143.26,143.18,33.24549]
[1724274155757,22.2761,143.26,143.18,34.64198599]
[1724274155946,22.2761,143.26,143.19,0.12549]
[1724274157270,13.12,143.23,143.18,20.0]
[1724274157451,13.12,143.23,143.16,20.0]
[1724274158451,13.12,143.23,143.17,0.12549]
[1724274159878,72.40194503,143.25,143.17,0.12549]
[1724274160047,6.9813,143.24,143.17,0.12549]
[1724274161876,6.9818,143.23,143.17,0.12549]
[1724274162056,13.12,143.23,143.16,20.0]
[1724274162379,20.1018,143.23,143.16,20.0]
[1724274162577,13.12,143.21,143.14,20.0]
[1724274173781,34.4248,143.21,143.14,20.0]
[1724274174010,34.4248,143.21,143.13,0.12549]
[1724274174175,34.4248,143.21,143.13,0.25098]
[1724274176111,34.4248,143.21,143.13,13.37098]
[1724274176315,21.3048,143.21,143.14,29.48593922]
[1724274176991,21.3048,143.21,143.15,14.76790127]
[1724274177181,21.3048,143.21,143.16,20.0]
[1724274178381,21.3048,143.21,143.16,21.39675505]
[1724274178890,21.3048,143.21,143.16,20.0]
[1724274184580,34.4248,143.21,143.16,20.0]
[1724274184788,34.4248,143.21,143.14,20.0]
[1724274186613,34.4248,143.21,143.13,0.12549]
[1724274186799,34.4248,143.21,143.13,0.25098]
[1724274187511,41.4078,143.21,143.13,0.25098]
[1724274187703,48.71057687,143.21,143.12,0.25098]
[1724274188289,13.12,143.19,143.12,0.25098]
[1724274188689,13.12,143.19,143.12,20.25098]
[1724274190508,13.12,143.19,143.12,20.0]
[1724274190806,20.1038,143.19,143.11,20.0]
[1724274191308,15.4073,143.16,143.11,20.0]
[1724274191611,21.7924,143.16,143.1,9.48593922]
[1724274191819,20.106,143.15,143.05,36.0602]
[1724274192002,20.106,143.15,143.06,9.48593922]
[1724274193188,20.106,143.15,143.07,20.0]
[1724274196313,15.1251,143.12,143.06,20.12549]
[1724274198925,15.1251,143.12,143.06,33.24549]
[1724274199128,15.1251,143.12,143.07,0.25098]
[1724274206225,15.1251,143.12,143.08,13.12]
[1724274206406,15.1251,143.12,143.09,1.64841167]
[1724274206613,22.1444,143.16,143.1,14.5173374]
[1724274206920,22.1444,143.16,143.11,0.25098]
[1724274208000,22.1444,143.16,143.11,20.25098]
[1724274208199,22.1444,143.16,143.12,33.12]
[1724274208400,29.12949144,143.2,143.13,0.25098]
[1724274209625,42.24949144,143.2,143.13,0.12549]
[1724274213935,21.8255,143.2,143.15,20.0]
[1724274214237,34.8959,143.29,143.15,20.0]
[1724274214238,15.8218,143.23,143.16,33.37098]
[1724274214427,15.8218,143.23,143.18,13.12]
[1724274214637,15.8218,143.23,143.19,1.39653052]
[1724274214934,15.8218,143.23,143.18,13.12]
[1724274215542,15.8218,143.23,143.17,20.0]
[1724274215714,15.8218,143.23,143.18,0.25098]
[1724274219038,15.8218,143.23,143.16,20.0]
[1724274219362,15.8218,143.23,143.17,1.52217281]
[1724274220332,15.8218,143.23,143.17,0.12549]
[1724274220640,15.8218,143.23,143.17,20.25098]
[1724274221145,15.8218,143.23,143.18,1.39656146]
[1724274221636,15.8218,143.23,143.17,33.37098]
[1724274222146,15.8218,143.23,143.17,34.76753085]
[1724274222444,6.6491,143.24,143.19,20.0]
[1724274222740,15.8218,143.26,143.2,0.25098]
[1724274225550,15.8218,143.26,143.2,0.12549]
[1724274225764,15.8218,143.26,143.18,20.0]
[1724274226061,15.8218,143.26,143.19,0.12549]
[1724274228325,22.8021,143.26,143.19,0.12549]
[1724274234736,15.8218,143.26,143.19,0.12549]
[1724274238165,7.30002534,143.27,143.2,20.0]
[1724274238373,15.4721,143.3,143.22,20.0]
[1724274238570,15.4721,143.3,143.23,1.52154274]
[1724274238878,15.4721,143.3,143.24,1.39607791]
[1724274239064,15.4721,143.3,143.23,0.25098]
[1724274240375,7.29797107,143.31,143.24,20.0]
[1724274240670,7.29797107,143.31,143.25,0.25098]
[1724274240992,7.29797107,143.31,143.25,20.25098]
[1724274241143,7.29797107,143.31,143.25,20.0]
[1724274241344,7.29797107,143.31,143.24,20.0]
[1724274241562,13.12,143.3,143.23,0.12549]
[1724274241752,13.12,143.28,143.2,20.0]
[1724274242180,13.12,143.28,143.21,20.0]
[1724274242488,13.12,143.28,143.19,16.3446]
[1724274242489,13.12,143.24,143.19,16.3446]
[1724274242973,15.4721,143.27,143.19,16.3446]
[1724274242974,13.12,143.25,143.19,16.3446]
[1724274244185,13.12,143.25,143.17,6.5645]
[1724274244477,13.12,143.25,143.18,20.0]
[1724274245476,13.12,143.25,143.18,21.39654613]
[1724274245987,13.12,143.25,143.18,20.0]
[1724274249291,13.12,143.23,143.17,20.0]
[1724274249496,13.12,143.21,143.15,20.0]
[1724274250397,13.12,143.21,143.13,6.504]
[1724274251587,13.12,143.21,143.14,0.12549]
[1724274251758,13.12,143.21,143.14,0.25098]
[1724274251961,13.12,143.21,143.14,20.25098]
[1724274254673,13.12,143.21,143.14,20.12549]
[1724274254995,13.12,143.19,143.11,13.12]
[1724274256289,13.12,143.19,143.12,20.0]
[1724274257702,26.5213,143.21,143.12,40.0]
[1724274258001,26.5213,143.21,143.13,0.25098]
[1724274258207,13.12,143.19,143.13,0.12549]
[1724274258377,20.1038,143.19,143.11,33.12]
[1724274258577,20.1038,143.19,143.12,0.25098]
[1724274259178,13.12,143.19,143.12,0.25098]
[1724274260805,20.1039,143.19,143.12,0.12549]
[1724274262483,6.9844,143.18,143.12,0.12549]
[1724274262682,23.3829,143.18,143.11,20.0]
[1724274263705,58.12,143.17,143.11,20.0]
[1724274263913,58.12,143.17,143.09,20.0]
[1724274264218,58.12,143.17,143.1,0.12549]
[1724274264586,58.12,143.17,143.06,19.64141816]
[1724274264587,13.12,143.15,143.06,37.44486362]
[1724274264785,13.12,143.15,143.06,50.56486362]
[1724274265112,13.12,143.15,143.06,42.60540289]
[1724274265494,20.1056,143.15,143.06,42.60540289]
[1724274266214,20.1056,143.15,143.07,20.0]
[1724274266709,20.1056,143.15,143.08,0.12549]
[1724274266924,20.1056,143.15,143.08,0.25098]
[1724274268814,13.12,143.15,143.08,0.25098]
[1724274271702,13.7129109,143.16,143.1,13.12]
[1724274271902,6.4184,143.16,143.11,0.25098]
[1724274272098,6.4184,143.16,143.1,13.12]
[1724274272303,6.4184,143.16,143.08,13.12]
[1724274272504,19.5384,143.16,143.09,20.25098]
[1724274274533,19.5384,143.16,143.09,0.25098]
[1724274274733,19.5384,143.16,143.09,0.12549]
[1724274274911,19.5384,143.16,143.08,20.0]
[1724274275623,16.4479,143.15,143.08,20.0]
[1724274276737,58.12,143.14,143.05,33.12]
[1724274277037,58.12,143.14,143.06,20.12549]
[1724274278143,20.1071,143.12,143.06,20.0]
[1724274278316,21.6608,143.11,143.03,20.0]
[1724274278931,21.6608,143.11,142.99,9.48540289]
[1724274278932,15.1886,143.07,142.99,13.12]
[1724274279452,6.4722,143.06,142.99,13.12]
[1724274280218,19.5922,143.06,142.98,27.95946073]
[1724274281036,6.4722,143.06,142.98,27.95946073]
[1724274281735,45.0,143.05,142.99,20.0]
[1724274282236,45.0,143.05,142.95,31.59770445]
[1724274282425,15.8413,143.04,142.96,20.0]
[1724274283025,22.8324,143.04,142.94,7.95946073]
[1724274283237,13.0465,143.02,142.94,7.95946073]
[1724274283436,6.993,143.0,142.91,20.0]
[1724274283643,15.1865,143.01,142.91,20.0]
[1724274283942,45.0,143.0,142.91,20.0]
[1724274285236,15.1865,143.01,142.93,20.0]
[1724274285616,15.1865,143.01,142.94,0.25098]
[1724274286029,15.1865,143.01,142.95,20.0]
[1724274286239,15.1865,143.01,142.96,0.25098]
[1724274288047,15.1865,143.01,142.97,20.0]
[1724274288353,6.0545,143.02,142.98,0.25098]
[1724274288541,16.1885,143.04,142.99,20.0]
[1724274288846,16.1885,143.04,143.0,0.25098]
[1724274289823,15.9625,143.08,143.01,20.0]
[1724274290122,15.9625,143.08,143.02,21.64909302]
[1724274290427,15.9625,143.08,143.02,20.0]
[1724274290745,15.9625,143.08,142.99,20.0]
[1724274290935,15.9625,143.08,143.0,0.25098]
[1724274291547,15.9625,143.08,143.0,0.12549]
[1724274296333,15.9625,143.08,143.0,0.25098]
[1724274296539,15.9625,143.08,143.0,1.64920642]
[1724274296853,15.9625,143.08,143.0,20.25098]
[1724274297847,15.9625,143.08,143.02,20.0]
[1724274298022,15.9625,143.08,143.03,1.52346078]
[1724274298427,15.9625,143.08,143.03,0.12549]
[1724274300247,15.9625,143.08,143.0,20.12549]
[1724274300451,15.9625,143.08,143.01,20.0]
[1724274304654,15.9625,143.08,143.01,21.39823609]
[1724274305351,15.9625,143.08,143.01,20.0]
[1724274306553,15.9625,143.08,143.02,21.64906258]
[1724274307558,15.9625,143.08,143.02,20.25098]
[1724274307937,15.9625,143.08,143.02,0.25098]
[1724274308258,15.9625,143.08,143.01,20.0]
[1724274309038,52.28835461,143.07,142.99,20.0]
[1724274309238,7.28835461,143.07,143.0,20.0]
[1724274309438,7.28835461,143.07,143.01,20.0]
[1724274311474,7.28835461,143.07,143.0,20.0]
[1724274311643,7.28835461,143.07,143.01,20.0]
[1724274313267,15.9625,143.08,143.01,20.0]
[1724274314781,15.9625,143.08,142.99,0.12549]
[1724274314782,45.0,143.07,142.99,0.12549]
[1724274315076,6.3504,143.06,142.97,20.0]
[1724274315367,16.3511,143.04,142.97,20.0]
[1724274316168,16.3511,143.04,142.96,22.12848201]
[1724274316550,45.0,143.03,142.96,20.0]
[1724274316856,45.0,143.03,142.94,27.95946073]
[1724274317187,6.0314,143.02,142.94,20.0]
[1724274317489,6.0314,143.02,142.9,23.73786362]
[1724274317490,16.456,143.01,142.92,20.0]
[1724274317643,61.456,143.01,142.92,20.0]
[1724274319086,68.4486,143.01,142.92,20.0]
[1724274319262,61.456,143.01,142.92,20.0]
[1724274319662,68.4485,143.01,142.92,20.0]
[1724274321456,61.456,143.01,142.92,20.0]
[1724274321758,16.456,143.01,142.94,20.0]
[1724274321960,16.456,143.01,142.95,0.12549]
[1724274322282,16.456,143.01,142.93,20.25098]
[1724274324081,45.0,143.0,142.93,20.25098]
[1724274324856,16.456,143.01,142.93,20.25098]
[1724274329496,16.456,143.01,142.94,20.0]
[1724274329786,16.456,143.01,142.95,0.25098]
[1724274331376,16.456,143.01,142.96,20.0]
[1724274331574,22.8129,143.05,142.97,0.25098]
[1724274331882,22.8129,143.05,142.97,20.25098]
[1724274332286,6.9912,143.04,142.97,20.0]
[1724274332488,23.2814,143.03,142.95,20.0]
[1724274332872,45.0,143.02,142.93,20.0]
[1724274333096,45.0,143.02,142.94,0.12549]
[1724274334101,45.0,143.02,142.94,0.25098]
[1724274334997,16.2898,143.03,142.94,20.25098]
[1724274335574,23.2813,143.03,142.94,20.25098]
[1724274337293,45.0,143.02,142.94,0.25098]
[1724274338569,16.2898,143.03,142.94,20.25098]
[1724274340296,16.2898,143.03,142.95,20.0]
[1724274340508,16.2898,143.03,142.96,0.12549]
[1724274341599,16.2898,143.03,142.98,20.0]
[1724274341781,6.5231,143.05,142.98,20.0]
[1724274341782,6.5231,143.05,142.99,0.12549]
[1724274342178,6.5231,143.05,142.99,0.25098]
[1724274343709,6.5231,143.05,142.99,0.12549]
[1724274343911,6.5231,143.05,142.98,20.0]
[1724274345403,22.5170797,143.06,142.98,20.0]
[1724274345589,15.2359,143.06,142.99,21.64921266]
[1724274347713,15.2359,143.06,142.99,20.25098]
[1724274348613,15.2359,143.06,142.99,20.0]
[1724274350390,15.2359,143.06,142.98,20.0]
[1724274354315,22.2259,143.06,142.98,20.0]
[1724274354724,22.2259,143.06,142.97,20.12549]
[1724274354924,22.2259,143.06,142.98,0.25098]
[1724274355226,45.0,143.05,142.98,0.12549]
[1724274355397,45.0,143.05,142.96,20.0]
[1724274355398,51.9907,143.05,142.96,20.0]
[1724274356023,6.9911,143.04,142.96,20.0]
[1724274356236,45.0,143.05,142.97,20.0]
[1724274356932,7.29030244,143.04,142.97,20.0]
[1724274358123,7.29030244,143.04,142.98,21.52403358]
[1724274358428,7.29030244,143.04,142.98,20.12549]
[1724274358599,7.29030244,143.04,142.99,0.12549]
[1724274360420,7.29030244,143.04,142.98,20.12549]
[1724274361820,15.2359,143.06,142.98,20.12549]
[1724274362055,15.2359,143.06,142.99,0.12549]
[1724274363527,22.226,143.06,142.97,20.0]
[1724274363730,45.0,143.05,142.97,20.0]
[1724274366143,45.0,143.05,142.97,21.39850957]
[1724274367607,15.2359,143.06,143.0,20.0]
[1724274367934,15.2359,143.06,143.01,0.25098]
[1724274368236,15.2359,143.06,143.01,0.12549]
[1724274369002,15.2359,143.06,142.98,20.0]
[1724274369314,15.2359,143.06,142.99,20.12549]
[1724274369835,6.4431,143.08,143.01,20.0]
[1724274370016,6.4431,143.08,143.02,0.25098]
[1724274371144,16.6529,143.1,143.02,1.64901983]
[1724274371847,16.6529,143.1,143.03,20.0]
[1724274372006,16.6529,143.1,143.04,1.39790495]
[1724274372342,16.6529,143.1,143.02,0.25098]
[1724274372511,16.6529,143.1,143.02,20.25098]
[1724274373025,16.6529,143.1,143.03,20.0]
[1724274373433,16.6529,143.1,143.04,0.12549]
[1724274373631,16.6529,143.1,143.03,20.0]
[1724274374038,16.6529,143.1,143.04,0.12549]
[1724274376140,16.6529,143.1,143.05,20.0]
[1724274376347,6.0201,143.12,143.06,21.64861725]
[1724274376524,15.9385,143.14,143.07,21.39748675]
[1724274376842,15.9385,143.14,143.08,1.64840049]
[1724274377249,15.9385,143.14,143.08,21.64840049]
[1724274377619,15.9385,143.14,143.08,20.25098]
[1724274379537,6.2723,143.16,143.08,20.25098]
[1724274379843,6.2723,143.16,143.09,1.39740512]
[1724274380824,6.2723,143.16,143.08,20.25098]
[1724274382047,6.2723,143.16,143.08,21.64842589]
[1724274382351,6.2723,143.16,143.08,20.25098]
[1724274387149,13.2578,143.16,143.08,20.25098]
[1724274387353,6.9862,143.14,143.08,20.0]
[1724274387533,6.9862,143.14,143.06,20.0]
[1724274388131,51.9858,143.15,143.06,20.0]
[1724274390557,45.0,143.15,143.07,20.0]
[1724274390764,45.0,143.15,143.07,20.25098]
[1724274397339,13.2575,143.16,143.08,1.39751817]
[1724274397845,16.6486,143.17,143.09,20.0]
[1724274398044,21.5551,143.2,143.11,20.0]
[1724274398245,28.5386,143.2,143.12,1.39712649]
[1724274399067,28.5386,143.2,143.13,0.12549]
[1724274400374,28.5386,143.2,143.12,0.25098]
[1724274404266,51.984,143.19,143.1,16.1056]
[1724274404447,6.9842,143.18,143.11,20.0]
[1724274408459,6.9851,143.17,143.1,16.1056]
[1724274409853,6.9843,143.18,143.1,16.1056]
[1724274410054,45.0,143.19,143.1,16.1056]
[1724274410254,51.9838,143.19,143.1,16.1056]
[1724274410681,51.9838,143.19,143.1,17.50279886]
[1724274410851,51.9838,143.19,143.1,16.1056]
[1724274411057,6.9842,143.18,143.1,16.1056]
[1724274412878,51.9847,143.17,143.1,16.1056]
[1724274413057,6.9847,143.17,143.1,16.1056]
[1724274414856,6.9843,143.18,143.1,16.1056]
[1724274415588,45.0,143.17,143.1,16.1056]
[1724274416559,6.9843,143.18,143.1,16.1056]
[1724274417170,6.9843,143.18,143.1,17.50281126]
[1724274417368,6.9843,143.18,143.1,16.1056]
[1724274420890,6.9847,143.17,143.1,16.1056]
[1724274421275,45.0,143.16,143.06,16.2588]
[1724274421591,6.9857,143.15,143.07,20.0]
[1724274421892,51.9862,143.14,143.07,20.0]
[1724274422597,51.9862,143.14,143.06,16.2588]
[1724274422598,6.9867,143.13,143.06,16.2588]
[1724274423503,51.9863,143.14,143.06,16.2588]
[1724274424396,6.9867,143.13,143.06,16.2588]
[1724274424573,45.0,143.12,143.06,16.2588]
[1724274425671,51.9871,143.12,143.05,6.6208]
[1724274425869,6.9877,143.11,143.03,16.2588]
[1724274426092,45.0,143.1,143.03,16.2588]
[1724274427772,6.9871,143.12,143.03,37.65681785]
[1724274427977,6.9871,143.12,143.04,0.12549]
[1724274428694,45.0,143.11,143.04,0.12549]
[1724274428904,45.0,143.11,143.03,45.74420289]
[1724274428905,45.0,143.11,143.03,36.2588]
[1724274429197,51.9876,143.11,143.03,16.2588]
[1724274429382,45.0,143.11,143.03,16.2588]
[1724274429700,15.3663,143.09,142.99,16.0803]
[1724274429877,45.0,143.08,142.99,16.0803]
[1724274430473,51.9894,143.08,142.99,16.0803]
[1724274430698,6.9896,143.07,142.99,16.0803]
[1724274431988,51.9892,143.08,142.99,16.0803]
[1724274432297,45.0,143.08,142.99,45.56570289]
[1724274432489,45.0,143.08,143.0,0.25098]
[1724274433206,51.989,143.08,143.0,0.25098]
[1724274435608,51.989,143.08,142.99,36.0803]
[1724274436103,51.989,143.08,142.99,16.0803]
[1724274436806,6.9896,143.07,142.97,34.49005359]
[1724274437004,51.9902,143.06,142.98,20.0]
[1724274437307,45.0,143.05,142.98,20.0]
[1724274438093,6.9897,143.07,142.98,20.0]
[1724274438298,45.0,143.06,142.98,20.0]
[1724274447791,21.7841,143.09,142.99,20.0]
[1724274447987,28.773,143.09,143.0,0.12549]
[1724274448194,6.9894,143.08,142.99,20.0]
[1724274448497,6.9896,143.07,142.98,20.0]
[1724274448703,6.9896,143.07,142.99,0.12549]
[1724274449513,45.0,143.06,142.98,20.0]
[1724274451717,45.0,143.06,142.96,15.879]
[1724274451917,45.0,143.06,142.97,20.0]
[1724274452792,6.9906,143.05,142.97,18.5]
[1724274454224,45.0,143.06,142.97,38.5]
[1724274454225,51.9902,143.06,142.97,38.5]
[1724274454396,51.9902,143.06,142.98,1.52395079]
[1724274454600,51.9902,143.06,142.98,0.12549]
[1724274459120,51.9902,143.06,142.97,38.5]
[1724274459121,6.9905,143.05,142.97,18.5]
[1724274460513,51.9901,143.06,142.97,18.5]
[1724274460718,51.9901,143.06,142.97,19.8985809]
[1724274460899,51.9901,143.06,142.97,18.5]
[1724274464832,6.9906,143.05,142.97,18.5]
[1724274465003,51.9911,143.04,142.97,18.5]
[1724274465202,6.9911,143.04,142.97,18.5]
[1724274465726,6.9907,143.05,142.97,18.5]
[1724274465901,45.0,143.04,142.97,18.5]
[1724274466317,51.9915,143.04,142.97,18.5]
[1724274467501,45.0,143.04,142.97,18.5]
[1724274468811,45.0,143.04,142.96,20.0]
[1724274469841,45.0,143.04,142.94,20.0]
[1724274470010,45.0,143.04,142.93,20.0]
[1724274470011,45.0,143.04,142.93,20.12549]
[1724274470205,45.0,143.04,142.94,0.25098]
[1724274470828,6.9917,143.03,142.94,0.25098]
[1724274471006,45.0,143.02,142.94,0.25098]
[1724274471208,45.0,143.02,142.94,20.25098]
[1724274472931,51.992,143.02,142.94,20.25098]
[1724274473318,45.0,143.02,142.94,20.25098]
[1724274474131,51.9921,143.02,142.94,20.0]
[1724274474315,51.9921,143.02,142.93,20.0]
[1724274475122,51.9921,143.02,142.93,40.0]
[1724274476324,45.0,143.02,142.93,40.0]
[1724274476637,45.0,143.02,142.94,0.12549]
[1724274477828,51.992,143.02,142.93,40.0]
[1724274479320,45.0,143.02,142.93,40.0]
[1724274479648,45.0,143.02,142.94,0.25098]
[1724274479829,45.0,143.03,142.94,0.25098]
[1724274480325,51.9916,143.03,142.94,0.25098]
[1724274480529,51.9916,143.03,142.94,0.12549]
[1724274483451,51.9916,143.03,142.93,40.0]
[1724274484141,6.992,143.02,142.93,20.0]
[1724274484321,45.0,143.01,142.93,20.0]
[1724274492367,51.9926,143.01,142.93,20.0]
[1724274506266,6.993,143.0,142.93,20.0]
[1724274506964,45.0,142.99,142.93,20.0]
[1724274507140,51.9935,142.99,142.93,20.0]
[1724274507336,51.9935,142.99,142.89,20.0]
[1724274507663,51.9935,142.99,142.9,20.0]
[1724274509257,51.9935,142.99,142.9,29.48540289]
[1724274509455,51.9935,142.99,142.91,9.48540289]
[1724274509639,51.9935,142.99,142.92,20.0]
[1724274510362,45.0,142.99,142.92,20.0]
[1724274512742,45.0,143.0,142.92,20.0]
[1724274515969,51.993,143.0,142.92,20.0]
[1724274517051,51.993,143.0,142.9,20.0]
[1724274517863,51.993,143.0,142.91,0.25098]
[1724274519352,51.993,143.0,142.91,20.25098]
[1724274519353,45.0,143.0,142.91,20.25098]
[1724274519559,45.0,143.0,142.92,20.0]
[1724274522150,28.08918294,143.05,142.95,20.0]
[1724274522349,3.57581924,143.06,142.93,29.48540289]
[1724274522668,3.57581924,143.05,142.94,20.25098]
[1724274522854,6.9919,143.03,142.94,20.25098]
[1724274523056,6.9919,143.03,142.94,20.0]
[1724274523754,51.992,143.02,142.94,20.0]
[1724274524073,51.992,143.02,142.92,20.0]
[1724274524579,6.993,143.0,142.92,20.0]
[1724274524888,45.0,142.99,142.9,20.0]
[1724274525382,6.9946,142.97,142.88,17.31553479]
[1724274525591,45.0,142.96,142.88,7.8301319]
[1724274525875,45.0,142.96,142.88,0.808008]
[1724274526050,0.12549,142.95,142.88,0.808008]
[1724274526257,6.9964,142.93,142.88,0.808008]
[1724274526581,45.0,142.92,142.88,0.808008]
[1724274526759,7.12299,142.91,142.88,0.808008]
[1724274526963,45.12549,142.9,142.88,0.808008]
[1724274527183,0.12549,142.91,142.88,0.808008]
[1724274527351,45.0,142.89,142.88,0.808008]
[1724274527552,6.9962,142.94,142.88,0.808008]
[1724274527754,65.25098,142.93,142.88,0.808008]
[1724274528291,45.12549,142.93,142.88,0.808008]
[1724274528448,45.0,142.93,142.88,0.808008]
[1724274528865,45.0,142.94,142.88,0.808008]
[1724274530162,28.09705668,143.0,142.88,0.808008]
[1724274530477,3.57581924,143.01,142.88,0.808008]
[1724274530974,6.9941,142.98,142.88,0.808008]
[1724274531177,6.9934,143.0,142.88,0.808008]
[1724274531358,6.9935,142.99,142.88,22.20738409]
[1724274531562,6.9935,142.99,142.88,20.808008]
[1724274532375,3.57581924,143.03,142.89,20.0]
[1724274532963,6.993,143.0,142.9,0.25098]
[1724274533287,6.993,143.0,142.9,1.65019301]
[1724274533690,45.0,142.99,142.9,1.65019301]
[1724274534060,6.9924,143.02,142.91,20.12549]
[1724274534282,6.9924,143.02,142.92,21.39907419]
[1724274534477,3.57581924,143.05,142.92,20.0]
[1724274534478,6.9915,143.04,142.92,20.0]
[1724274534717,6.9915,143.04,142.93,0.25098]
[1724274535196,6.9915,143.04,142.93,0.12549]
[1724274535391,10.56621924,143.06,142.93,20.12549]
[1724274535693,3.57581924,143.07,142.95,20.0]
[1724274535987,254.2,143.06,142.96,1.64956743]
[1724274536162,24.52123744,143.05,142.96,20.25098]
[1724274536557,24.52123744,143.05,142.96,21.64957422]
[1724274537054,24.52123744,143.05,142.97,20.0]
[1724274537254,24.52123744,143.05,142.98,0.12549]
[1724274537467,24.52123744,143.05,142.98,1.52393792]
[1724274537665,24.52123744,143.05,142.98,21.52393792]
[1724274537982,24.52123744,143.05,142.98,20.12549]
[1724274539066,24.52123744,143.05,142.99,20.12549]
[1724274539305,6.9873,143.12,143.0,20.0]
[1724274539514,25.94908315,143.14,143.01,21.39817234]
[1724274541918,6.9865,143.14,143.04,20.0]
[1724274542569,6.9866,143.13,143.04,20.0]
[1724274542871,6.9866,143.13,143.03,0.12549]
[1724274543585,45.0,143.12,143.03,21.52340055]
[1724274543891,0.12549,143.14,143.04,20.12549]
[1724274544085,45.12549,143.14,143.05,1.39776819]
[1724274544294,6.9852,143.16,143.06,1.39776868]
[1724274544497,6.9852,143.16,143.06,21.39776868]
[1724274544787,6.9846,143.18,143.07,20.12549]
[1724274545000,6.9837,143.19,143.08,21.39746346]
[1724274545190,6.9837,143.19,143.09,20.12549]
[1724274545891,6.9842,143.18,143.08,20.0]
[1724274546498,45.12549,143.17,143.08,20.0]
[1724274547376,45.12549,143.17,143.08,21.39748874]
[1724274547776,52.11019,143.17,143.08,20.0]
[1724274548008,52.11019,143.17,143.09,1.39747956]
[1724274548212,52.11019,143.17,143.08,20.0]
[1724274548911,52.11019,143.17,143.09,1.39750551]
[1724274549203,52.11019,143.17,143.08,20.0]
[1724274549701,45.0,143.17,143.08,20.0]
[1724274550378,6.9838,143.19,143.09,20.0]
[1724274550581,6.9838,143.19,143.1,20.0]
[1724274551807,45.0,143.18,143.1,20.0]
[1724274552303,51.9843,143.18,143.1,20.0]
[1724274553489,6.9852,143.16,143.05,20.0]
[1724274553688,45.0,143.15,143.07,20.0]
[1724274554201,45.0,143.15,143.05,20.0]
[1724274554698,45.0,143.15,143.07,20.0]
[1724274555179,45.0,143.15,143.08,20.0]
[1724274557095,6.9847,143.17,143.08,20.0]
[1724274557402,6.9852,143.16,143.08,20.0]
[1724274557800,6.9852,143.16,143.06,20.0]
[1724274557986,6.9852,143.16,143.07,0.12549]
[1724274558186,32.84211288,143.21,143.06,20.0]
[1724274558187,45.0,143.15,143.06,20.0]
[1724274558389,45.0,143.15,143.03,20.0]
[1724274558390,7.11179,143.14,143.03,20.0]
[1724274558594,45.0,143.13,143.03,20.0]